{"text_format":"1","workbook":"xlsx","n_sheets":2,"sheets":["様式1-6","入力方法"],"not_rendered":{"charts":0,"images":1,"macros":1,"external_links":0,"defined_names":2,"comments":0,"pivot_tables":0},"unopened":[],"bounds":{"document_bytes":16777216,"sheet_cells":100000,"rows_first":2000,"rows_last":500,"rows_between":2000,"halvings":0,"cell_chars":16384,"cell_head_chars":4096},"cells_cut":0,"cells_raw":0,"read":"whole","date_system":"1900"}

{"sheet":"様式1-6","index":0,"n_rows":1036,"n_cols":7,"rows_kept":1036,"cut":false,"hidden":false,"merged":[[5,1,5,6],[2,1,4,3],[2,4,4,4],[0,0,0,2],[0,4,0,5]]}
["提出期限\n２月末日",null,null,null,"令和　　年度　　行事予定表",null,"様式1-6"]
[null,null,null,null,null,null,"＊＊＊＊＊　主催欄　＊＊＊＊＊"]
[null,"専門部名",null,null,null,null,"◎･･･県高体連・県教育委員会共催"]
[null,null,null,null,null,null,"○･･･県高体連専門部行事"]
[null,null,null,null,null,null,"●･･･関東・全国高体連行事"]
[null,"※曜日は自動で入力されます。セルが選択できないように設定してあります。\n※定通制大会に関しては記載しないで下さい。一括して定通制部より行事予定の提出を依頼してあります。"]
["年（西暦）","月","日","曜","大会名","主催","会場"]
[null,null,null,{"$f":"IFERROR(TEXT(DATE(A8,B8,C8),\"aaa\"),\"\")","v":""}]
[null,null,null,{"$f":"IFERROR(TEXT(DATE(A9,B9,C9),\"aaa\"),\"\")","v":""}]
[null,null,null,""]
[null,null,null,""]
[null,null,null,""]
[null,null,null,""]
[null,null,null,""]
[null,null,null,""]
[null,null,null,""]
[null,null,null,""]
[null,null,null,""]
[null,null,null,""]
[null,null,null,""]
[null,null,null,""]
[null,null,null,""]
[null,null,null,""]
[null,null,null,""]
[null,null,null,""]
[null,null,null,""]
[null,null,null,""]
[null,null,null,""]
[null,null,null,""]
[null,null,null,""]
[null,null,null,""]
[null,null,null,""]
[null,null,null,""]
[null,null,null,""]
[null,null,null,""]
[null,null,null,""]
[null,null,null,""]
[null,null,null,""]
[null,null,null,""]
[null,null,null,""]
[null,null,null,""]
[null,null,null,""]
[null,null,null,""]
[null,null,null,""]
[null,null,null,""]
[null,null,null,""]
[null,null,null,""]
[null,null,null,""]
[null,null,null,""]
[null,null,null,""]
[null,null,null,""]
[null,null,null,""]
[null,null,null,""]
[null,null,null,""]
[null,null,null,""]
[null,null,null,""]
[null,null,null,""]
[null,null,null,""]
[null,null,null,""]
[null,null,null,""]
[null,null,null,""]
[null,null,null,""]
[null,null,null,""]
[null,null,null,""]
[null,null,null,""]
[null,null,null,""]
[null,null,null,""]
[null,null,null,""]
[null,null,null,""]
[null,null,null,""]
[null,null,null,""]
[null,null,null,""]
[null,null,null,{"$f":"IFERROR(TEXT(DATE(A73,B73,C73),\"aaa\"),\"\")","v":""}]
[null,null,null,""]
[null,null,null,""]
[null,null,null,""]
[null,null,null,""]
[null,null,null,""]
[null,null,null,""]
[null,null,null,""]
[null,null,null,""]
[null,null,null,""]
[null,null,null,""]
[null,null,null,""]
[null,null,null,""]
[null,null,null,""]
[null,null,null,""]
[null,null,null,""]
[null,null,null,""]
[null,null,null,""]
[null,null,null,""]
[null,null,null,""]
[null,null,null,""]
[null,null,null,""]
[null,null,null,""]
[null,null,null,""]
[null,null,null,""]
[null,null,null,""]
[null,null,null,""]
[null,null,null,""]
[null,null,null,""]
[null,null,null,""]
[null,null,null,""]
[null,null,null,""]
[null,null,null,""]
[null,null,null,""]
[null,null,null,""]
[null,null,null,""]
[null,null,null,""]
[null,null,null,""]
[null,null,null,""]
[null,null,null,""]
[null,null,null,""]
[null,null,null,""]
[null,null,null,""]
[null,null,null,""]
[null,null,null,""]
[null,null,null,""]
[null,null,null,""]
[null,null,null,""]
[null,null,null,""]
[null,null,null,""]
[null,null,null,""]
[null,null,null,""]
[null,null,null,""]
[null,null,null,""]
[null,null,null,""]
[null,null,null,""]
[null,null,null,""]
[null,null,null,""]
[null,null,null,""]
[null,null,null,""]
[null,null,null,""]
[null,null,null,""]
[null,null,null,""]
[null,null,null,""]
[null,null,null,{"$f":"IFERROR(TEXT(DATE(A137,B137,C137),\"aaa\"),\"\")","v":""}]
[null,null,null,""]
[null,null,null,""]
[null,null,null,""]
[null,null,null,""]
[null,null,null,""]
[null,null,null,""]
[null,null,null,""]
[null,null,null,""]
[null,null,null,""]
[null,null,null,""]
[null,null,null,""]
[null,null,null,""]
[null,null,null,""]
[null,null,null,""]
[null,null,null,""]
[null,null,null,""]
[null,null,null,""]
[null,null,null,""]
[null,null,null,""]
[null,null,null,""]
[null,null,null,""]
[null,null,null,""]
[null,null,null,""]
[null,null,null,""]
[null,null,null,""]
[null,null,null,""]
[null,null,null,""]
[null,null,null,""]
[null,null,null,""]
[null,null,null,""]
[null,null,null,""]
[null,null,null,""]
[null,null,null,""]
[null,null,null,""]
[null,null,null,""]
[null,null,null,""]
[null,null,null,""]
[null,null,null,""]
[null,null,null,""]
[null,null,null,""]
[null,null,null,""]
[null,null,null,""]
[null,null,null,""]
[null,null,null,""]
[null,null,null,""]
[null,null,null,""]
[null,null,null,""]
[null,null,null,""]
[null,null,null,""]
[null,null,null,""]
[null,null,null,""]
[null,null,null,""]
[null,null,null,""]
[null,null,null,""]
[null,null,null,""]
[null,null,null,""]
[null,null,null,""]
[null,null,null,""]
[null,null,null,""]
[null,null,null,""]
[null,null,null,""]
[null,null,null,""]
[null,null,null,""]
[null,null,null,{"$f":"IFERROR(TEXT(DATE(A201,B201,C201),\"aaa\"),\"\")","v":""}]
[null,null,null,""]
[null,null,null,""]
[null,null,null,""]
[null,null,null,""]
[null,null,null,""]
[null,null,null,""]
[null,null,null,""]
[null,null,null,""]
[null,null,null,""]
[null,null,null,""]
[null,null,null,""]
[null,null,null,""]
[null,null,null,""]
[null,null,null,""]
[null,null,null,""]
[null,null,null,""]
[null,null,null,""]
[null,null,null,""]
[null,null,null,""]
[null,null,null,""]
[null,null,null,""]
[null,null,null,""]
[null,null,null,""]
[null,null,null,""]
[null,null,null,""]
[null,null,null,""]
[null,null,null,""]
[null,null,null,""]
[null,null,null,""]
[null,null,null,""]
[null,null,null,""]
[null,null,null,""]
[null,null,null,""]
[null,null,null,""]
[null,null,null,""]
[null,null,null,""]
[null,null,null,""]
[null,null,null,""]
[null,null,null,""]
[null,null,null,""]
[null,null,null,""]
[null,null,null,""]
[null,null,null,""]
[null,null,null,""]
[null,null,null,""]
[null,null,null,""]
[null,null,null,""]
[null,null,null,""]
[null,null,null,""]
[null,null,null,""]
[null,null,null,""]
[null,null,null,""]
[null,null,null,""]
[null,null,null,""]
[null,null,null,{"$f":"IFERROR(TEXT(DATE(A256,B256,C256),\"aaa\"),\"\")","v":""}]
[null,null,null,""]
[null,null,null,""]
[null,null,null,""]
[null,null,null,""]
[null,null,null,""]
[null,null,null,""]
[null,null,null,""]
[null,null,null,""]
[null,null,null,{"$f":"IFERROR(TEXT(DATE(A265,B265,C265),\"aaa\"),\"\")","v":""}]
[null,null,null,""]
[null,null,null,""]
[null,null,null,""]
[null,null,null,""]
[null,null,null,""]
[null,null,null,""]
[null,null,null,""]
[null,null,null,""]
[null,null,null,""]
[null,null,null,""]
[null,null,null,""]
[null,null,null,""]
[null,null,null,""]
[null,null,null,""]
[null,null,null,""]
[null,null,null,""]
[null,null,null,""]
[null,null,null,""]
[null,null,null,""]
[null,null,null,""]
[null,null,null,""]
[null,null,null,""]
[null,null,null,""]
[null,null,null,""]
[null,null,null,""]
[null,null,null,""]
[null,null,null,""]
[null,null,null,""]
[null,null,null,""]
[null,null,null,""]
[null,null,null,""]
[null,null,null,""]
[null,null,null,""]
[null,null,null,""]
[null,null,null,""]
[null,null,null,""]
[null,null,null,""]
[null,null,null,""]
[null,null,null,""]
[null,null,null,""]
[null,null,null,""]
[null,null,null,""]
[null,null,null,""]
[null,null,null,""]
[null,null,null,""]
[null,null,null,""]
[null,null,null,""]
[null,null,null,""]
[null,null,null,""]
[null,null,null,""]
[null,null,null,""]
[null,null,null,""]
[null,null,null,""]
[null,null,null,""]
[null,null,null,""]
[null,null,null,""]
[null,null,null,""]
[null,null,null,""]
[null,null,null,""]
[null,null,null,""]
[null,null,null,""]
[null,null,null,""]
[null,null,null,""]
[null,null,null,{"$f":"IFERROR(TEXT(DATE(A329,B329,C329),\"aaa\"),\"\")","v":""}]
[null,null,null,""]
[null,null,null,""]
[null,null,null,""]
[null,null,null,""]
[null,null,null,""]
[null,null,null,""]
[null,null,null,""]
[null,null,null,""]
[null,null,null,""]
[null,null,null,""]
[null,null,null,""]
[null,null,null,""]
[null,null,null,""]
[null,null,null,""]
[null,null,null,""]
[null,null,null,""]
[null,null,null,""]
[null,null,null,""]
[null,null,null,""]
[null,null,null,""]
[null,null,null,""]
[null,null,null,""]
[null,null,null,""]
[null,null,null,""]
[null,null,null,""]
[null,null,null,""]
[null,null,null,""]
[null,null,null,""]
[null,null,null,""]
[null,null,null,""]
[null,null,null,""]
[null,null,null,""]
[null,null,null,""]
[null,null,null,""]
[null,null,null,""]
[null,null,null,""]
[null,null,null,""]
[null,null,null,""]
[null,null,null,""]
[null,null,null,""]
[null,null,null,""]
[null,null,null,""]
[null,null,null,""]
[null,null,null,""]
[null,null,null,""]
[null,null,null,""]
[null,null,null,""]
[null,null,null,""]
[null,null,null,""]
[null,null,null,""]
[null,null,null,""]
[null,null,null,""]
[null,null,null,""]
[null,null,null,""]
[null,null,null,""]
[null,null,null,""]
[null,null,null,""]
[null,null,null,""]
[null,null,null,""]
[null,null,null,""]
[null,null,null,""]
[null,null,null,""]
[null,null,null,""]
[null,null,null,{"$f":"IFERROR(TEXT(DATE(A393,B393,C393),\"aaa\"),\"\")","v":""}]
[null,null,null,""]
[null,null,null,""]
[null,null,null,""]
[null,null,null,""]
[null,null,null,""]
[null,null,null,""]
[null,null,null,""]
[null,null,null,""]
[null,null,null,""]
[null,null,null,""]
[null,null,null,""]
[null,null,null,""]
[null,null,null,""]
[null,null,null,""]
[null,null,null,""]
[null,null,null,""]
[null,null,null,""]
[null,null,null,""]
[null,null,null,""]
[null,null,null,""]
[null,null,null,""]
[null,null,null,""]
[null,null,null,""]
[null,null,null,""]
[null,null,null,""]
[null,null,null,""]
[null,null,null,""]
[null,null,null,""]
[null,null,null,""]
[null,null,null,""]
[null,null,null,""]
[null,null,null,""]
[null,null,null,""]
[null,null,null,""]
[null,null,null,""]
[null,null,null,""]
[null,null,null,""]
[null,null,null,""]
[null,null,null,""]
[null,null,null,""]
[null,null,null,""]
[null,null,null,""]
[null,null,null,""]
[null,null,null,""]
[null,null,null,""]
[null,null,null,""]
[null,null,null,""]
[null,null,null,""]
[null,null,null,""]
[null,null,null,""]
[null,null,null,""]
[null,null,null,""]
[null,null,null,""]
[null,null,null,""]
[null,null,null,""]
[null,null,null,""]
[null,null,null,""]
[null,null,null,""]
[null,null,null,""]
[null,null,null,""]
[null,null,null,""]
[null,null,null,""]
[null,null,null,""]
[null,null,null,{"$f":"IFERROR(TEXT(DATE(A457,B457,C457),\"aaa\"),\"\")","v":""}]
[null,null,null,""]
[null,null,null,""]
[null,null,null,""]
[null,null,null,""]
[null,null,null,""]
[null,null,null,""]
[null,null,null,""]
[null,null,null,""]
[null,null,null,""]
[null,null,null,""]
[null,null,null,""]
[null,null,null,""]
[null,null,null,""]
[null,null,null,""]
[null,null,null,""]
[null,null,null,""]
[null,null,null,""]
[null,null,null,""]
[null,null,null,""]
[null,null,null,""]
[null,null,null,""]
[null,null,null,""]
[null,null,null,""]
[null,null,null,""]
[null,null,null,""]
[null,null,null,""]
[null,null,null,""]
[null,null,null,""]
[null,null,null,""]
[null,null,null,""]
[null,null,null,""]
[null,null,null,""]
[null,null,null,""]
[null,null,null,""]
[null,null,null,""]
[null,null,null,""]
[null,null,null,""]
[null,null,null,""]
[null,null,null,""]
[null,null,null,""]
[null,null,null,""]
[null,null,null,""]
[null,null,null,""]
[null,null,null,""]
[null,null,null,""]
[null,null,null,""]
[null,null,null,""]
[null,null,null,""]
[null,null,null,""]
[null,null,null,""]
[null,null,null,""]
[null,null,null,""]
[null,null,null,""]
[null,null,null,""]
[null,null,null,""]
[null,null,null,""]
[null,null,null,""]
[null,null,null,""]
[null,null,null,""]
[null,null,null,""]
[null,null,null,""]
[null,null,null,""]
[null,null,null,""]
[null,null,null,{"$f":"IFERROR(TEXT(DATE(A521,B521,C521),\"aaa\"),\"\")","v":""}]
[null,null,null,""]
[null,null,null,""]
[null,null,null,""]
[null,null,null,""]
[null,null,null,""]
[null,null,null,""]
[null,null,null,""]
[null,null,null,""]
[null,null,null,""]
[null,null,null,""]
[null,null,null,""]
[null,null,null,""]
[null,null,null,""]
[null,null,null,""]
[null,null,null,""]
[null,null,null,""]
[null,null,null,""]
[null,null,null,""]
[null,null,null,""]
[null,null,null,""]
[null,null,null,""]
[null,null,null,""]
[null,null,null,""]
[null,null,null,""]
[null,null,null,""]
[null,null,null,""]
[null,null,null,""]
[null,null,null,""]
[null,null,null,""]
[null,null,null,""]
[null,null,null,""]
[null,null,null,""]
[null,null,null,""]
[null,null,null,""]
[null,null,null,""]
[null,null,null,""]
[null,null,null,""]
[null,null,null,""]
[null,null,null,""]
[null,null,null,""]
[null,null,null,""]
[null,null,null,""]
[null,null,null,""]
[null,null,null,""]
[null,null,null,""]
[null,null,null,""]
[null,null,null,""]
[null,null,null,""]
[null,null,null,""]
[null,null,null,""]
[null,null,null,""]
[null,null,null,""]
[null,null,null,""]
[null,null,null,""]
[null,null,null,""]
[null,null,null,""]
[null,null,null,""]
[null,null,null,""]
[null,null,null,""]
[null,null,null,""]
[null,null,null,""]
[null,null,null,""]
[null,null,null,""]
[null,null,null,{"$f":"IFERROR(TEXT(DATE(A585,B585,C585),\"aaa\"),\"\")","v":""}]
[null,null,null,""]
[null,null,null,""]
[null,null,null,""]
[null,null,null,""]
[null,null,null,""]
[null,null,null,""]
[null,null,null,""]
[null,null,null,""]
[null,null,null,""]
[null,null,null,""]
[null,null,null,""]
[null,null,null,""]
[null,null,null,""]
[null,null,null,""]
[null,null,null,""]
[null,null,null,""]
[null,null,null,""]
[null,null,null,""]
[null,null,null,""]
[null,null,null,""]
[null,null,null,""]
[null,null,null,""]
[null,null,null,""]
[null,null,null,""]
[null,null,null,""]
[null,null,null,""]
[null,null,null,""]
[null,null,null,""]
[null,null,null,""]
[null,null,null,""]
[null,null,null,""]
[null,null,null,""]
[null,null,null,""]
[null,null,null,""]
[null,null,null,""]
[null,null,null,""]
[null,null,null,""]
[null,null,null,""]
[null,null,null,""]
[null,null,null,""]
[null,null,null,""]
[null,null,null,""]
[null,null,null,""]
[null,null,null,""]
[null,null,null,""]
[null,null,null,""]
[null,null,null,""]
[null,null,null,""]
[null,null,null,""]
[null,null,null,""]
[null,null,null,""]
[null,null,null,""]
[null,null,null,""]
[null,null,null,""]
[null,null,null,""]
[null,null,null,""]
[null,null,null,""]
[null,null,null,""]
[null,null,null,""]
[null,null,null,""]
[null,null,null,""]
[null,null,null,""]
[null,null,null,""]
[null,null,null,{"$f":"IFERROR(TEXT(DATE(A649,B649,C649),\"aaa\"),\"\")","v":""}]
[null,null,null,""]
[null,null,null,""]
[null,null,null,""]
[null,null,null,""]
[null,null,null,""]
[null,null,null,""]
[null,null,null,""]
[null,null,null,""]
[null,null,null,""]
[null,null,null,""]
[null,null,null,""]
[null,null,null,""]
[null,null,null,""]
[null,null,null,""]
[null,null,null,""]
[null,null,null,""]
[null,null,null,""]
[null,null,null,""]
[null,null,null,""]
[null,null,null,""]
[null,null,null,""]
[null,null,null,""]
[null,null,null,""]
[null,null,null,""]
[null,null,null,""]
[null,null,null,""]
[null,null,null,""]
[null,null,null,""]
[null,null,null,""]
[null,null,null,""]
[null,null,null,""]
[null,null,null,""]
[null,null,null,""]
[null,null,null,""]
[null,null,null,""]
[null,null,null,""]
[null,null,null,""]
[null,null,null,""]
[null,null,null,""]
[null,null,null,""]
[null,null,null,""]
[null,null,null,""]
[null,null,null,""]
[null,null,null,""]
[null,null,null,""]
[null,null,null,""]
[null,null,null,""]
[null,null,null,""]
[null,null,null,""]
[null,null,null,""]
[null,null,null,""]
[null,null,null,""]
[null,null,null,""]
[null,null,null,""]
[null,null,null,""]
[null,null,null,""]
[null,null,null,""]
[null,null,null,""]
[null,null,null,""]
[null,null,null,""]
[null,null,null,""]
[null,null,null,""]
[null,null,null,""]
[null,null,null,{"$f":"IFERROR(TEXT(DATE(A713,B713,C713),\"aaa\"),\"\")","v":""}]
[null,null,null,""]
[null,null,null,""]
[null,null,null,""]
[null,null,null,""]
[null,null,null,""]
[null,null,null,""]
[null,null,null,""]
[null,null,null,""]
[null,null,null,""]
[null,null,null,""]
[null,null,null,""]
[null,null,null,""]
[null,null,null,""]
[null,null,null,""]
[null,null,null,""]
[null,null,null,""]
[null,null,null,""]
[null,null,null,""]
[null,null,null,""]
[null,null,null,""]
[null,null,null,""]
[null,null,null,""]
[null,null,null,""]
[null,null,null,""]
[null,null,null,""]
[null,null,null,""]
[null,null,null,""]
[null,null,null,""]
[null,null,null,""]
[null,null,null,""]
[null,null,null,""]
[null,null,null,""]
[null,null,null,""]
[null,null,null,""]
[null,null,null,""]
[null,null,null,""]
[null,null,null,""]
[null,null,null,""]
[null,null,null,""]
[null,null,null,""]
[null,null,null,""]
[null,null,null,""]
[null,null,null,""]
[null,null,null,""]
[null,null,null,""]
[null,null,null,""]
[null,null,null,""]
[null,null,null,""]
[null,null,null,""]
[null,null,null,""]
[null,null,null,""]
[null,null,null,""]
[null,null,null,""]
[null,null,null,""]
[null,null,null,""]
[null,null,null,""]
[null,null,null,""]
[null,null,null,""]
[null,null,null,""]
[null,null,null,""]
[null,null,null,""]
[null,null,null,""]
[null,null,null,""]
[null,null,null,{"$f":"IFERROR(TEXT(DATE(A777,B777,C777),\"aaa\"),\"\")","v":""}]
[null,null,null,""]
[null,null,null,""]
[null,null,null,""]
[null,null,null,""]
[null,null,null,""]
[null,null,null,""]
[null,null,null,""]
[null,null,null,""]
[null,null,null,""]
[null,null,null,""]
[null,null,null,""]
[null,null,null,""]
[null,null,null,""]
[null,null,null,""]
[null,null,null,""]
[null,null,null,""]
[null,null,null,""]
[null,null,null,""]
[null,null,null,""]
[null,null,null,""]
[null,null,null,""]
[null,null,null,""]
[null,null,null,""]
[null,null,null,""]
[null,null,null,""]
[null,null,null,""]
[null,null,null,""]
[null,null,null,""]
[null,null,null,""]
[null,null,null,""]
[null,null,null,""]
[null,null,null,""]
[null,null,null,""]
[null,null,null,""]
[null,null,null,""]
[null,null,null,""]
[null,null,null,""]
[null,null,null,""]
[null,null,null,""]
[null,null,null,""]
[null,null,null,""]
[null,null,null,""]
[null,null,null,""]
[null,null,null,""]
[null,null,null,""]
[null,null,null,""]
[null,null,null,""]
[null,null,null,""]
[null,null,null,""]
[null,null,null,""]
[null,null,null,""]
[null,null,null,""]
[null,null,null,""]
[null,null,null,""]
[null,null,null,""]
[null,null,null,""]
[null,null,null,""]
[null,null,null,""]
[null,null,null,""]
[null,null,null,""]
[null,null,null,""]
[null,null,null,""]
[null,null,null,""]
[null,null,null,{"$f":"IFERROR(TEXT(DATE(A841,B841,C841),\"aaa\"),\"\")","v":""}]
[null,null,null,""]
[null,null,null,""]
[null,null,null,""]
[null,null,null,""]
[null,null,null,""]
[null,null,null,""]
[null,null,null,""]
[null,null,null,""]
[null,null,null,""]
[null,null,null,""]
[null,null,null,""]
[null,null,null,""]
[null,null,null,""]
[null,null,null,""]
[null,null,null,""]
[null,null,null,""]
[null,null,null,""]
[null,null,null,""]
[null,null,null,""]
[null,null,null,""]
[null,null,null,""]
[null,null,null,""]
[null,null,null,""]
[null,null,null,""]
[null,null,null,""]
[null,null,null,""]
[null,null,null,""]
[null,null,null,""]
[null,null,null,""]
[null,null,null,""]
[null,null,null,""]
[null,null,null,""]
[null,null,null,""]
[null,null,null,""]
[null,null,null,""]
[null,null,null,""]
[null,null,null,""]
[null,null,null,""]
[null,null,null,""]
[null,null,null,""]
[null,null,null,""]
[null,null,null,""]
[null,null,null,""]
[null,null,null,""]
[null,null,null,""]
[null,null,null,""]
[null,null,null,""]
[null,null,null,""]
[null,null,null,""]
[null,null,null,""]
[null,null,null,""]
[null,null,null,""]
[null,null,null,""]
[null,null,null,""]
[null,null,null,""]
[null,null,null,""]
[null,null,null,""]
[null,null,null,""]
[null,null,null,""]
[null,null,null,""]
[null,null,null,""]
[null,null,null,""]
[null,null,null,""]
[null,null,null,{"$f":"IFERROR(TEXT(DATE(A905,B905,C905),\"aaa\"),\"\")","v":""}]
[null,null,null,""]
[null,null,null,""]
[null,null,null,""]
[null,null,null,""]
[null,null,null,""]
[null,null,null,""]
[null,null,null,""]
[null,null,null,""]
[null,null,null,""]
[null,null,null,""]
[null,null,null,""]
[null,null,null,""]
[null,null,null,""]
[null,null,null,""]
[null,null,null,""]
[null,null,null,""]
[null,null,null,""]
[null,null,null,""]
[null,null,null,""]
[null,null,null,""]
[null,null,null,""]
[null,null,null,""]
[null,null,null,""]
[null,null,null,""]
[null,null,null,""]
[null,null,null,""]
[null,null,null,""]
[null,null,null,""]
[null,null,null,""]
[null,null,null,""]
[null,null,null,""]
[null,null,null,""]
[null,null,null,""]
[null,null,null,""]
[null,null,null,""]
[null,null,null,""]
[null,null,null,""]
[null,null,null,""]
[null,null,null,{"$f":"IFERROR(TEXT(DATE(A944,B944,C944),\"aaa\"),\"\")","v":""}]
[null,null,null,""]
[null,null,null,""]
[null,null,null,""]
[null,null,null,""]
[null,null,null,""]
[null,null,null,""]
[null,null,null,""]
[null,null,null,""]
[null,null,null,""]
[null,null,null,""]
[null,null,null,""]
[null,null,null,""]
[null,null,null,""]
[null,null,null,""]
[null,null,null,""]
[null,null,null,""]
[null,null,null,""]
[null,null,null,""]
[null,null,null,""]
[null,null,null,""]
[null,null,null,""]
[null,null,null,""]
[null,null,null,""]
[null,null,null,""]
[null,null,null,{"$f":"IFERROR(TEXT(DATE(A969,B969,C969),\"aaa\"),\"\")","v":""}]
[null,null,null,""]
[null,null,null,""]
[null,null,null,""]
[null,null,null,""]
[null,null,null,""]
[null,null,null,""]
[null,null,null,""]
[null,null,null,""]
[null,null,null,""]
[null,null,null,""]
[null,null,null,""]
[null,null,null,""]
[null,null,null,""]
[null,null,null,""]
[null,null,null,""]
[null,null,null,""]
[null,null,null,""]
[null,null,null,""]
[null,null,null,""]
[null,null,null,""]
[null,null,null,""]
[null,null,null,""]
[null,null,null,""]
[null,null,null,""]
[null,null,null,""]
[null,null,null,""]
[null,null,null,""]
[null,null,null,""]
[null,null,null,""]
[null,null,null,""]
[null,null,null,""]
[null,null,null,""]
[null,null,null,""]
[null,null,null,""]
[null,null,null,""]
[null,null,null,""]
[null,null,null,""]
[null,null,null,""]
[null,null,null,""]
[null,null,null,""]
[null,null,null,""]
[null,null,null,""]
[null,null,null,""]
[null,null,null,""]
[null,null,null,""]
[null,null,null,""]
[null,null,null,""]
[null,null,null,""]
[null,null,null,""]
[null,null,null,""]
[null,null,null,""]
[null,null,null,""]
[null,null,null,""]
[null,null,null,""]
[null,null,null,""]
[null,null,null,""]
[null,null,null,""]
[null,null,null,""]
[null,null,null,""]
[null,null,null,{"$f":"IFERROR(TEXT(DATE(A1029,B1029,C1029),\"aaa\"),\"\")","v":""}]
[]
[]
[]
[]
[null,null,null,"◎"]
[null,null,null,"○"]
[null,null,null,"●"]

{"sheet":"入力方法","index":1,"n_rows":0,"n_cols":0,"rows_kept":0,"cut":false,"hidden":false,"merged":[]}